bitfinex/quotes_BTCUSD_20240815
["timestamp","ask_amount","ask_price","bid_price","bid_amount"]
[1723741511719,0.504243,59495.0,59494.0,0.095]
[1723741512339,0.840405,59495.0,59494.0,0.095]
[1723741512755,0.841405,59495.0,59494.0,0.5]
[1723741513577,0.919705,59495.0,59494.0,0.5]
[1723741513779,0.920705,59495.0,59494.0,0.505]
[1723741514613,1.256867,59495.0,59494.0,0.505]
[1723741514817,1.256867,59495.0,59494.0,0.105]
[1723741515016,0.920705,59495.0,59494.0,0.105]
[1723741515245,0.93650839,59495.0,59494.0,0.105]
[1723741515448,1.27267039,59495.0,59494.0,0.105]
[1723741516074,1.87422493,59495.0,59494.0,0.105]
[1723741516274,1.71577947,59495.0,59494.0,0.105]
[1723741516506,2.21077947,59495.0,59494.0,0.105]
[1723741516926,2.20977947,59495.0,59494.0,0.1]
[1723741517132,2.54494147,59495.0,59494.0,0.095]
[1723741517339,2.54994147,59495.0,59494.0,0.095]
[1723741517539,2.54994147,59495.0,59494.0,0.096]
[1723741517540,2.21977947,59495.0,59494.0,0.096]
[1723741517678,1.44167039,59495.0,59494.0,0.0969097]
[1723741518091,1.44767039,59495.0,59494.0,0.0969097]
[1723741518720,1.64283689,59495.0,59494.0,0.4969097]
[1723741518920,2.07283689,59495.0,59494.0,0.4969097]
[1723741519121,2.40899889,59495.0,59494.0,0.4969097]
[1723741519560,2.07283689,59495.0,59494.0,0.4969097]
[1723741519711,2.76816089,59495.0,59494.0,0.0969097]
[1723741519910,2.43199889,59495.0,59494.0,0.0969097]
[1723741520402,2.76816089,59495.0,59494.0,0.0969097]
[1723741522014,0.336258,59478.0,59477.0,0.359087]
[1723741522214,1.34720293,59478.0,59477.0,0.359087]
[1723741522510,2.44951678,59478.0,59477.0,0.37048518]
[1723741522771,2.54951678,59478.0,59477.0,0.01139818]
[1723741522910,2.72107132,59478.0,59477.0,0.01139818]
[1723741523109,2.88577478,59478.0,59477.0,0.01139818]
[1723741523313,2.90977478,59478.0,59477.0,0.01639818]
[1723741523511,2.90977478,59478.0,59477.0,0.02039818]
[1723741523512,2.91077478,59478.0,59477.0,0.02039818]
[1723741523712,3.08132932,59478.0,59477.0,0.01539818]
[1723741523972,3.08031976,59478.0,59477.0,0.01139818]
[1723741524171,3.09331976,59478.0,59477.0,0.01139818]
[1723741524392,1.985952,59477.0,59476.0,3.1e-07]
[1723741524522,2.94227398,59477.0,59476.0,3.1e-07]
[1723741525267,2.94227398,59477.0,59462.0,0.4]
[1723741525268,1.513543,59463.0,59462.0,0.4]
[1723741525629,2.03628933,59463.0,59462.0,0.4]
[1723741525824,0.840957,59456.0,59455.0,0.0117811]
[1723741526143,1.17734,59456.0,59455.0,0.0117811]
[1723741526540,1.42969454,59456.0,59455.0,0.0117811]
[1723741526845,1.34889454,59456.0,59455.0,0.0117811]
[1723741528464,0.840957,59456.0,59455.0,0.0117811]
[1723741528735,1.17734,59456.0,59455.0,0.0117811]
[1723741528975,1.17734,59456.0,59455.0,0.4117811]
[1723741529183,1.42969454,59456.0,59455.0,0.4117811]
[1723741529389,2.04197754,59456.0,59455.0,0.4117811]
[1723741529749,2.04197754,59456.0,59455.0,0.0117811]
[1723741530119,2.04197754,59456.0,59455.0,0.0126908]
[1723741531470,1.70559454,59456.0,59455.0,0.0126908]
[1723741531673,1.44889454,59456.0,59455.0,0.0126908]
[1723741532311,0.504574,59456.0,59455.0,0.0126908]
[1723741532679,0.504574,59456.0,59455.0,0.4126908]
[1723741533040,0.840957,59456.0,59455.0,0.4126908]
[1723741533242,0.504574,59456.0,59455.0,0.4126908]
[1723741533758,0.840957,59456.0,59455.0,0.4126908]
[1723741534168,0.504574,59456.0,59455.0,0.4126908]
[1723741534611,0.336359,59461.0,59455.0,0.4126908]
[1723741534813,0.1,59460.0,59455.0,0.4126908]
[1723741535012,0.168191,59456.0,59455.0,0.4126908]
[1723741535249,0.23017727,59471.0,59455.0,0.4126908]
[1723741535435,0.31,59468.0,59459.0,0.076]
[1723741535607,0.31,59468.0,59456.0,0.33903303]
[1723741535608,0.31,59468.0,59462.0,0.076]
[1723741535817,0.336321,59467.0,59462.0,0.076]
[1723741536025,0.168171,59463.0,59462.0,0.076]
[1723741536250,0.336325,59467.0,59462.0,0.076]
[1723741536712,0.16817,59464.0,59462.0,0.076]
[1723741537156,0.336333,59465.0,59462.0,0.076]
[1723741537157,0.168167,59465.0,59462.0,0.076]
[1723741537356,0.168171,59463.0,59462.0,0.076]
[1723741537558,0.009,59467.0,59458.0,0.076]
[1723741537785,0.504505,59464.0,59463.0,0.4]
[1723741538173,0.840842,59464.0,59463.0,0.4]
[1723741538345,1.01062357,59464.0,59463.0,0.4]
[1723741538755,0.168191,59456.0,59455.0,0.0126908]
[1723741538952,0.504574,59456.0,59455.0,0.0126908]
[1723741539848,0.504574,59456.0,59455.0,0.4126908]
[1723741539849,0.840957,59456.0,59455.0,0.4126908]
[1723741540027,0.504574,59456.0,59455.0,0.4126908]
[1723741540225,0.504574,59456.0,59455.0,0.4156908]
[1723741540432,0.336357,59461.0,59456.0,0.0825]
[1723741540635,0.0751,59469.0,59456.0,0.0825]
[1723741540839,0.1249745,59467.0,59456.0,0.0825]
[1723741541065,0.336347,59463.0,59456.0,0.0825]
[1723741541230,0.16818,59460.0,59457.0,0.168188]
[1723741541443,0.336344,59463.0,59460.0,0.064]
[1723741541444,0.168172,59463.0,59460.0,0.064]
[1723741541643,0.1751,59473.0,59460.0,0.064]
[1723741541972,0.347319,59468.0,59463.0,0.16817]
[1723741542184,0.347319,59468.0,59461.0,0.250676]
[1723741542185,0.168167,59465.0,59461.0,0.250676]
[1723741542402,0.336327,59466.0,59461.0,0.0825]
[1723741542594,0.168173,59463.0,59461.0,0.0825]
[1723741542808,0.336335,59465.0,59461.0,0.0825]
[1723741543022,0.16817,59464.0,59461.0,0.0825]
[1723741543234,0.336335,59465.0,59461.0,0.0825]
[1723741543235,0.168172,59463.0,59461.0,0.0825]
[1723741543444,0.168174,59462.0,59461.0,0.0845]
[1723741543640,1.0000573,59462.0,59461.0,0.002]
[1723741543845,1.252321,59462.0,59461.0,0.002]
[1723741544048,1.252321,59462.0,59461.0,0.003]
[1723741544255,0.840957,59456.0,59455.0,0.0126908]
[1723741544454,0.504574,59456.0,59455.0,0.0126908]
[1723741544658,0.840957,59456.0,59455.0,0.0085468]
[1723741544863,0.840957,59456.0,59455.0,0.4085468]
[1723741545037,0.504574,59456.0,59455.0,0.4085468]
[1723741545237,0.840957,59456.0,59455.0,0.4085468]
[1723741545984,0.840957,59456.0,59455.0,0.0085468]
[1723741546752,0.840957,59456.0,59455.0,0.4125468]
[1723741547584,0.840957,59456.0,59455.0,0.4155468]
[1723741548621,0.840957,59456.0,59455.0,0.0155468]
[1723741548881,1.17734,59456.0,59455.0,0.0155468]
[1723741549416,0.85673654,59456.0,59455.0,0.0155468]
[1723741549798,1.19311954,59456.0,59455.0,0.0155468]
[1723741550022,1.36467408,59456.0,59455.0,0.0155468]
[1723741551223,1.94035708,59456.0,59455.0,0.0155468]
[1723741551424,2.47487704,59456.0,59455.0,0.0155468]
[1723741551723,2.56255406,59456.0,59455.0,0.0155468]
[1723741551900,2.49787704,59456.0,59455.0,0.0155468]
[1723741552813,2.49787704,59456.0,59455.0,0.0115468]
[1723741553007,2.49787704,59456.0,59455.0,0.0085468]
[1723741553184,2.50687704,59456.0,59455.0,0.0085468]
[1723741553390,2.49987704,59456.0,59455.0,0.0085468]
[1723741553591,2.53628399,59456.0,59455.0,0.0085468]
[1723741553794,2.54128399,59456.0,59455.0,0.0085468]
[1723741554292,2.54128399,59456.0,59455.0,0.0095468]
[1723741554293,2.54828399,59456.0,59455.0,0.0095468]
[1723741554469,1.97659404,59456.0,59455.0,0.0095468]
[1723741554684,1.54659404,59456.0,59455.0,0.0095468]
[1723741554891,1.51827141,59456.0,59455.0,0.0095468]
[1723741555095,1.20711687,59456.0,59455.0,0.0095468]
[1723741555298,1.20711687,59456.0,59455.0,0.0085468]
[1723741555299,1.20011687,59456.0,59455.0,0.0085468]
[1723741555508,0.89206867,59456.0,59455.0,0.0085468]
[1723741555711,0.02277687,59456.0,59455.0,0.12913118]
[1723741555916,0.02277687,59456.0,59455.0,0.0873468]
[1723741556126,0.01577687,59456.0,59455.0,0.0873468]
[1723741556559,0.168188,59457.0,59455.0,0.0873468]
[1723741556769,0.026,59456.0,59455.0,1.0586288]
[1723741556989,0.013,59456.0,59455.0,1.0586288]
[1723741557424,0.001,59456.0,59455.0,0.7212408]
[1723741557629,0.002,59456.0,59455.0,0.5530468]
[1723741557836,0.002,59456.0,59455.0,0.7212408]
[1723741558053,0.002,59456.0,59455.0,0.65974108]
[1723741558271,0.168191,59456.0,59455.0,0.4085468]
[1723741558509,0.505574,59456.0,59455.0,0.4155468]
[1723741558718,0.52135872,59456.0,59455.0,0.4155468]
[1723741558925,0.85765763,59456.0,59455.0,0.4155468]
[1723741559785,0.85765763,59456.0,59455.0,0.4135468]
[1723741559999,0.85665763,59456.0,59455.0,0.4085468]
[1723741560207,0.85765763,59456.0,59455.0,0.4135468]
[1723741560416,0.52127463,59456.0,59455.0,0.4155468]
[1723741560679,0.01578472,59456.0,59455.0,0.5787408]
[1723741560889,0.168177,59461.0,59457.0,0.168187]
[1723741561098,0.01578253,59460.0,59459.0,0.168183]
[1723741561313,0.067367,59465.0,59462.0,0.168174]
[1723741561527,0.067367,59465.0,59455.0,0.4780468]
[1723741561528,0.168191,59456.0,59455.0,0.4125468]
[1723741561767,0.52035593,59456.0,59455.0,0.4105468]
[1723741562231,0.18397293,59456.0,59455.0,0.4105468]
[1723741562470,0.52035593,59456.0,59455.0,0.4105468]
[1723741562889,0.52035593,59456.0,59455.0,0.4085468]
[1723741563311,0.85673893,59456.0,59455.0,0.4085468]
[1723741563941,0.52035593,59456.0,59455.0,0.4105468]
[1723741564149,0.52035593,59456.0,59455.0,0.4095468]
[1723741564579,0.01578193,59456.0,59455.0,0.4115468]
[1723741564773,0.35216394,59456.0,59455.0,0.4105468]
[1723741564976,0.35216394,59456.0,59455.0,0.4115468]
[1723741564977,0.52035494,59456.0,59455.0,0.4115468]
[1723741565548,0.85673794,59456.0,59455.0,0.4115468]
[1723741565952,0.85673794,59456.0,59455.0,0.4095468]
[1723741566453,0.85673794,59456.0,59455.0,0.45343118]
[1723741566454,0.52035494,59456.0,59455.0,0.45343118]
[1723741566630,0.52035494,59456.0,59455.0,0.4145468]
[1723741566839,0.52035494,59456.0,59455.0,0.4165468]
[1723741567157,0.52035494,59456.0,59455.0,0.4135468]
[1723741567544,0.85673794,59456.0,59455.0,0.4135468]
[1723741568198,0.85673794,59456.0,59455.0,0.4145468]
[1723741568442,0.01578094,59456.0,59455.0,1.0015288]
[1723741568652,0.067376,59460.0,59457.0,0.168186]
[1723741568653,0.01577745,59459.0,59457.0,0.168186]
[1723741568822,0.01577768,59458.0,59457.0,0.5122011]
[1723741569041,0.01577768,59459.0,59457.0,0.5122011]
[1723741569238,0.01577768,59459.0,59457.0,0.1758241]
[1723741569703,0.01577768,59459.0,59458.0,1.239098]
[1723741569903,0.067376,59460.0,59459.0,0.504549]
[1723741570125,0.067376,59460.0,59459.0,1.42883554]
[1723741570322,0.39439012,59474.0,59459.0,1.42883554]
[1723741570323,0.168146,59473.0,59466.0,0.336325]
[1723741570522,0.430828,59471.0,59466.0,0.336325]
[1723741570657,0.01577936,59470.0,59469.0,0.168154]
[1723741570861,0.63129336,59470.0,59469.0,0.0076371]
[1723741571305,0.99592366,59470.0,59469.0,0.0076371]
[1723741571488,1.33222766,59470.0,59469.0,0.0076371]
[1723741572337,1.66853166,59470.0,59469.0,0.0076371]
[1723741572544,2.26435606,59470.0,59469.0,0.0076371]
[1723741572704,2.72366006,59470.0,59469.0,0.0076371]
[1723741572910,2.8009296,59470.0,59469.0,0.0076371]
[1723741573501,2.80492389,59470.0,59469.0,0.0076371]
[1723741574027,2.80092389,59470.0,59469.0,0.0076371]
[1723741574205,2.81492389,59470.0,59469.0,0.0086371]
[1723741574773,2.82892389,59470.0,59469.0,0.0096371]
[1723741575212,2.72005403,59470.0,59469.0,0.0096371]
[1723741575413,2.69705403,59470.0,59469.0,0.0096371]
[1723741576020,2.36075003,59470.0,59469.0,0.0096371]
[1723741577369,2.31665008,59470.0,59469.0,0.0096371]
[1723741577515,2.36075176,59470.0,59469.0,0.0096371]
[1723741578726,2.28348222,59470.0,59469.0,0.0096371]
[1723741578927,2.28430822,59470.0,59469.0,0.0096371]
[1723741579254,1.93685368,59470.0,59469.0,0.0096371]
[1723741579460,0.68844168,59470.0,59469.0,0.0096371]
[1723741579702,0.99642161,59470.0,59469.0,0.0096371]
[1723741579902,1.02474568,59470.0,59469.0,0.0096371]
[1723741580307,0.64611761,59470.0,59469.0,0.0086371]
[1723741580447,0.63211761,59470.0,59469.0,0.0734371]
[1723741580809,0.64311761,59470.0,59469.0,0.4744371]
[1723741581233,1.31572561,59470.0,59469.0,0.4086371]
[1723741581451,1.75905317,59470.0,59469.0,0.4086371]
[1723741581652,2.09390771,59470.0,59469.0,0.4086371]
[1723741581804,1.44404917,59470.0,59469.0,0.0076371]
[1723741582009,1.09874517,59470.0,59469.0,0.0076371]
[1723741582243,1.00074517,59470.0,59469.0,0.0076371]
[1723741582395,0.49628917,59470.0,59469.0,0.0076371]
[1723741582596,0.46796561,59470.0,59469.0,0.0076371]
[1723741582817,0.46796561,59470.0,59469.0,0.4076371]
[1723741582818,0.63611761,59470.0,59469.0,0.4076371]
[1723741583075,0.63611643,59470.0,59469.0,0.4076371]
[1723741583310,0.97242043,59470.0,59469.0,0.4076371]
[1723741583679,1.02242043,59470.0,59469.0,0.4076371]
[1723741584160,0.59242043,59470.0,59469.0,0.4076371]
[1723741584356,0.25611643,59470.0,59469.0,0.4076371]
[1723741585081,0.02060243,59470.0,59469.0,0.5757911]
[1723741585296,0.02060243,59470.0,59469.0,0.4076371]
[1723741585297,0.172978,59470.0,59469.0,0.4076371]
[1723741585471,0.18875211,59470.0,59469.0,0.4076371]
[1723741586309,0.52505611,59470.0,59469.0,0.4076371]
[1723741586490,0.86136011,59470.0,59469.0,0.4076371]
[1723741586894,0.52505611,59470.0,59469.0,0.4076371]
[1723741587480,0.86136011,59470.0,59469.0,0.4076371]
[1723741587689,0.52505611,59470.0,59469.0,0.4076371]
[1723741587894,0.52505611,59470.0,59469.0,0.94216935]
[1723741587895,0.02060011,59470.0,59469.0,0.94216935]
[1723741588097,0.004826,59470.0,59469.0,1.27847835]
[1723741588296,0.004826,59470.0,59469.0,1.95309635]
[1723741589035,0.002826,59470.0,59469.0,1.95309635]
[1723741589243,0.002826,59470.0,59469.0,1.95809635]
[1723741589817,0.002826,59470.0,59469.0,1.95309635]
[1723741590025,0.002826,59470.0,59469.0,2.3737535]
[1723741590026,0.003826,59470.0,59469.0,2.3737535]
[1723741590409,0.001826,59470.0,59469.0,2.32340535]
[1723741590811,0.001826,59470.0,59469.0,2.33240535]
[1723741590812,0.002826,59470.0,59469.0,2.33240535]
[1723741591008,0.001826,59470.0,59469.0,1.96209635]
[1723741591236,0.169978,59470.0,59469.0,0.78501535]
[1723741591436,0.843586,59470.0,59469.0,0.5739371]
[1723741591665,1.17989,59470.0,59469.0,0.4276371]
[1723741592243,1.17789,59470.0,59469.0,0.4076371]
[1723741592665,1.17789,59470.0,59469.0,0.4186371]
[1723741592666,1.17889,59470.0,59469.0,0.4186371]
[1723741593106,1.17789,59470.0,59469.0,0.4076371]
[1723741593505,1.17789,59470.0,59469.0,0.4086371]
[1723741593730,1.17889,59470.0,59469.0,0.0166371]
[1723741593932,1.17789,59470.0,59469.0,0.0086371]
[1723741594075,0.841586,59470.0,59469.0,0.04950081]
[1723741594275,0.848586,59470.0,59469.0,0.05050081]
[1723741594477,0.848586,59470.0,59469.0,0.04850081]
[1723741594680,0.175978,59470.0,59469.0,0.4076371]
[1723741594898,0.176978,59470.0,59469.0,0.4871371]
[1723741595089,0.168978,59470.0,59469.0,0.4871371]
[1723741595389,0.505282,59470.0,59469.0,0.4871371]
[1723741595780,0.505282,59470.0,59469.0,0.4881371]
[1723741595781,0.510282,59470.0,59469.0,0.4881371]
[1723741596387,0.168978,59470.0,59469.0,0.4871371]
[1723741596588,0.505282,59470.0,59469.0,0.4871371]
[1723741597274,0.506282,59470.0,59469.0,0.4871371]
[1723741599158,1.17889,59470.0,59469.0,0.4076371]
[1723741599358,1.25659,59470.0,59469.0,0.4076371]
[1723741600886,0.842586,59470.0,59469.0,0.4076371]
[1723741602684,1.17889,59470.0,59469.0,0.4076371]
[1723741603085,0.842586,59470.0,59469.0,0.4076371]
[1723741605365,1.17889,59470.0,59469.0,0.4076371]
[1723741606398,0.842586,59470.0,59469.0,0.4076371]
[1723741606917,1.17889,59470.0,59469.0,0.4076371]
[1723741607118,2.4323135,59470.0,59469.0,0.4076371]
[1723741607810,2.4323135,59470.0,59469.0,0.0076371]
[1723741608226,2.44031156,59470.0,59469.0,0.0086371]
[1723741608965,2.43131156,59470.0,59469.0,0.0076371]
[1723741609161,2.44031156,59470.0,59469.0,0.0086371]
[1723741609360,2.44831156,59470.0,59469.0,0.0096371]
[1723741609491,2.6108661,59470.0,59469.0,0.0086371]
[1723741609691,2.43931156,59470.0,59469.0,0.0086371]
[1723741609893,2.44831156,59470.0,59469.0,0.0096371]
[1723741612232,2.44831675,59470.0,59469.0,0.0096371]
[1723741612436,2.78462075,59470.0,59469.0,1e-07]
[1723741612638,3.05637443,59470.0,59469.0,1e-07]
[1723741613247,1.657596,59457.0,59456.0,0.4009086]
[1723741613449,2.45081875,59457.0,59456.0,0.41083179]
[1723741613656,2.78719575,59457.0,59456.0,0.01083179]
[1723741614725,2.45081875,59457.0,59456.0,0.01083179]
[1723741614928,2.45281875,59457.0,59456.0,0.01083179]
[1723741615159,2.78919575,59457.0,59456.0,0.01083179]
[1723741615577,2.45081875,59457.0,59456.0,0.01083179]
[1723741615749,2.46181875,59457.0,59456.0,0.01083179]
[1723741616199,2.44605054,59457.0,59456.0,0.01083179]
[1723741616356,2.3022638,59457.0,59456.0,0.01083179]
[1723741616554,1.8219868,59457.0,59456.0,0.01083179]
[1723741616757,1.6460868,59457.0,59456.0,0.01083179]
[1723741616974,1.6340868,59457.0,59456.0,0.01083179]
[1723741617378,1.6420868,59457.0,59456.0,0.01083179]
[1723741617823,2.80839534,59457.0,59456.0,0.01083179]
[1723741618024,2.47201834,59457.0,59456.0,0.01083179]
[1723741618752,2.45301834,59457.0,59456.0,0.01083179]
[1723741619164,2.47601834,59457.0,59456.0,0.01083179]
[1723741619365,0.336394,59454.0,59453.0,0.29908049]
[1723741619568,1.72740566,59454.0,59453.0,0.29908049]
[1723741619829,1.323738,59441.0,59432.0,0.4]
[1723741620029,1.323738,59441.0,59439.0,0.0819]
[1723741620030,0.168234,59441.0,59439.0,0.0819]
[1723741620456,0.33644,59446.0,59441.0,0.0819]
[1723741620656,0.1,59454.0,59441.0,0.0819]
[1723741620884,0.1,59454.0,59442.0,0.01664267]
[1723741620885,0.168229,59443.0,59442.0,0.01664267]
[1723741621059,0.168231,59442.0,59441.0,0.0819]
[1723741621288,0.504693,59442.0,59441.0,0.0819]
[1723741621684,0.336427,59449.0,59441.0,0.25345454]
[1723741621913,0.336427,59449.0,59442.0,0.20383969]
[1723741622027,0.168218,59447.0,59443.0,0.310427]
[1723741622227,0.336427,59449.0,59443.0,0.1422]
[1723741622466,0.16822,59446.0,59443.0,0.1422]
[1723741623404,0.168225,59444.0,59443.0,0.1422]
[1723741623545,0.168225,59444.0,59443.0,0.19453717]
[1723741624177,0.069384,59449.0,59444.0,0.336449]
[1723741624375,0.069384,59449.0,59445.0,0.08526409]
[1723741624376,0.002,59449.0,59445.0,0.08526409]
[1723741624580,0.168218,59447.0,59445.0,0.15585557]
[1723741624976,0.168218,59447.0,59445.0,0.15249148]
[1723741625585,0.336426,59449.0,59445.0,0.32071248]
[1723741625586,0.168212,59449.0,59445.0,0.32071248]
[1723741625784,0.168214,59448.0,59445.0,0.32071248]
[1723741625983,0.168214,59448.0,59445.0,0.15249148]
[1723741625984,0.001,59447.0,59445.0,0.15249148]
[1723741626458,0.002,59447.0,59445.0,0.15249148]
[1723741626662,0.336424,59449.0,59445.0,0.15249148]
[1723741626875,0.337424,59449.0,59446.0,0.03203711]
[1723741627084,0.504658,59446.0,59445.0,0.0819]
[1723741627289,0.841097,59446.0,59445.0,0.0819]
[1723741627488,0.504658,59446.0,59445.0,0.0819]
[1723741628026,0.841097,59446.0,59445.0,0.0819]
[1723741628944,0.504676,59444.0,59443.0,0.0612086]
[1723741629147,0.841127,59444.0,59443.0,0.0009086]
[1723741630169,0.842127,59444.0,59443.0,0.0009086]
[1723741630637,1.179578,59444.0,59443.0,0.0009086]
[1723741630841,1.178578,59444.0,59443.0,0.0009086]
[1723741631463,1.177578,59444.0,59443.0,0.0009086]
[1723741633634,1.7712868,59444.0,59443.0,0.0009086]
[1723741633784,2.82505455,59444.0,59443.0,0.0009086]
[1723741635583,2.83505455,59444.0,59443.0,0.0009086]
[1723741636138,2.84513817,59444.0,59443.0,0.0009086]
[1723741636306,2.85513817,59444.0,59443.0,0.0009086]
[1723741637909,2.83937596,59444.0,59443.0,0.0009086]
[1723741638104,2.85513624,59444.0,59443.0,0.0009086]
[1723741638347,2.83937596,59444.0,59443.0,0.0009086]
[1723741638474,2.85513621,59444.0,59443.0,0.0009086]
[1723741638877,3.19158721,59444.0,59443.0,6e-07]
[1723741639077,3.21458721,59444.0,59443.0,6e-07]
[1723741639302,3.15486009,59444.0,59443.0,6e-07]
[1723741639506,3.09682941,59444.0,59443.0,6e-07]
[1723741640287,3.15486009,59444.0,59443.0,6e-07]
[1723741640483,2.187042,59441.0,59440.0,6e-07]
[1723741640711,3.24175679,59441.0,59440.0,6e-07]
[1723741641723,3.24875679,59441.0,59440.0,6e-07]
[1723741641944,3.2487525,59441.0,59440.0,6e-07]
[1723741643297,3.2257525,59441.0,59440.0,6e-07]
[1723741643691,3.2327525,59441.0,59440.0,6e-07]
[1723741643919,3.2327525,59441.0,59431.0,0.0002]
[1723741643920,2.170554,59432.0,59431.0,0.0002]
[1723741644033,2.7878645,59432.0,59431.0,0.0002]
[1723741644235,2.8878645,59432.0,59431.0,0.0002]
[1723741644656,1.72357196,59432.0,59431.0,0.0002]
[1723741644875,1.19357196,59432.0,59431.0,0.0002]
[1723741646082,1.19357188,59432.0,59431.0,0.0002]
[1723741647736,1.62357188,59432.0,59431.0,0.0002]
[1723741648664,2.04019088,59432.0,59431.0,0.0002]
[1723741648985,1.86737188,59432.0,59431.0,0.0002]
[1723741649758,1.86736825,59432.0,59431.0,0.0002]
[1723741649977,1.86736825,59432.0,59431.0,0.0011086]
[1723741650184,1.86736824,59432.0,59431.0,0.0011086]
[1723741650404,1.86716581,59432.0,59431.0,0.0011086]
[1723741651475,2.03872035,59432.0,59431.0,0.0011086]
[1723741652097,2.20368481,59432.0,59431.0,0.0011086]
[1723741652776,2.37523935,59432.0,59431.0,0.0011086]
[1723741652910,2.39823935,59432.0,59431.0,0.0011086]
[1723741653352,2.39823935,59432.0,59425.0,0.10012]
[1723741653353,1.658388,59426.0,59425.0,0.10012]
[1723741653565,2.62784055,59426.0,59425.0,0.10012]
[1723741653770,2.88814737,59426.0,59425.0,0.10012]
[1723741654625,2.88914737,59426.0,59425.0,0.10012]
[1723741654822,2.89014737,59426.0,59425.0,0.10012]
[1723741655391,2.89014737,59426.0,59421.0,1e-06]
[1723741655392,1.851162,59422.0,59421.0,1e-06]
[1723741655627,1.851162,59422.0,59417.0,0.0208621]
[1723741655628,0.653797,59418.0,59417.0,1e-07]
[1723741655817,2.93908343,59418.0,59417.0,1e-07]
[1723741656018,3.03908343,59418.0,59417.0,1e-07]
[1723741656377,3.03908343,59418.0,59398.0,0.58936062]
[1723741656378,0.01,59400.0,59384.0,0.51466362]
[1723741656600,0.336748,59392.0,59385.0,0.1749216]
[1723741656802,0.1759,59404.0,59385.0,0.1749216]
[1723741656803,0.01,59396.0,59385.0,0.1749216]
[1723741657004,0.168385,59388.0,59385.0,0.1749216]
[1723741657187,0.168385,59388.0,59385.0,0.2227273]
[1723741657423,0.168385,59388.0,59385.0,0.17155454]
[1723741657635,0.168382,59389.0,59385.0,0.17155454]
[1723741657844,0.01,59394.0,59385.0,0.17155454]
[1723741658016,0.168387,59387.0,59386.0,0.01715545]
[1723741658216,0.16832555,59387.0,59386.0,0.18870999]
[1723741658424,0.50509955,59387.0,59386.0,0.17155454]
[1723741658630,0.169385,59388.0,59386.0,0.17155454]
[1723741658840,0.169385,59388.0,59387.0,0.18870999]
[1723741659205,0.842921,59388.0,59387.0,0.17155454]
[1723741659444,0.506153,59388.0,59387.0,0.29695454]
[1723741659636,0.505153,59388.0,59387.0,0.29695454]
[1723741660052,0.515153,59388.0,59387.0,0.1254]
[1723741660252,0.851921,59388.0,59387.0,0.1254]
[1723741660466,0.852921,59388.0,59387.0,0.1254]
[1723741661019,0.506153,59388.0,59387.0,0.1254]
[1723741661230,0.75904227,59412.0,59387.0,0.1254]
[1723741661231,0.01,59409.0,59387.0,0.25879454]
[1723741661436,0.08577727,59430.0,59402.0,0.0747]
[1723741661437,0.51466362,59408.0,59402.0,0.0747]
[1723741661631,0.1759,59425.0,59405.0,0.0747]
[1723741661632,0.336604,59417.0,59405.0,0.0747]
[1723741661836,0.09577727,59422.0,59405.0,0.0747]
[1723741661837,0.51466362,59416.0,59407.0,0.0747]
[1723741662057,0.168288,59422.0,59417.0,0.168301]
[1723741662233,0.59456362,59433.0,59415.0,0.0747]
[1723741662234,0.42231027,59430.0,59415.0,0.0747]
[1723741662427,0.168291,59421.0,59417.0,0.0497]
[1723741662636,0.336558,59425.0,59418.0,0.17155454]
[1723741662894,0.336558,59425.0,59418.0,0.20559965]
[1723741663048,0.336578,59422.0,59418.0,0.20559965]
[1723741663458,0.16829,59421.0,59419.0,0.0747]
[1723741663657,0.16829,59421.0,59420.0,0.20455451]
[1723741663858,0.336544,59428.0,59420.0,0.20455451]
[1723741664059,0.34253,59430.0,59422.0,0.0747]
[1723741664261,0.168275,59427.0,59423.0,0.20318171]
[1723741664466,0.006,59430.0,59423.0,0.20317668]
[1723741664686,0.00090971,59432.0,59431.0,0.168262]
[1723741664887,0.00090971,59432.0,59431.0,0.17491424]
[1723741665089,0.00090971,59432.0,59431.0,0.17155454]
[1723741665343,0.00090971,59432.0,59431.0,0.24625454]
[1723741665537,0.00090971,59432.0,59431.0,0.95955637]
[1723741665770,0.00090971,59432.0,59431.0,1.29608037]
[1723741665961,0.00090971,59432.0,59431.0,1.65760437]
[1723741666183,0.00090971,59432.0,59431.0,1.65960437]
[1723741666385,0.00090971,59432.0,59431.0,1.99612837]
[1723741666588,0.51466362,59449.0,59448.0,0.242914]
[1723741666793,0.51466362,59449.0,59448.0,0.80385134]
[1723741666997,0.000826,59451.0,59450.0,0.336417]
[1723741667215,0.000826,59451.0,59450.0,1.01596003]
[1723741667436,0.000826,59451.0,59450.0,1.45207703]
[1723741667649,0.000826,59451.0,59450.0,1.48033901]
[1723741668098,0.000826,59451.0,59450.0,1.47833901]
[1723741668306,0.000826,59451.0,59450.0,1.47497552]
[1723741668762,0.000826,59451.0,59450.0,1.57497552]
[1723741668975,0.000826,59451.0,59450.0,1.57697552]
[1723741669210,0.001826,59451.0,59450.0,1.57597552]
[1723741669818,0.001826,59451.0,59450.0,0.88514152]
[1723741670017,0.000826,59451.0,59450.0,0.87914152]
[1723741670218,0.000826,59451.0,59450.0,1.21555852]
[1723741670650,0.001826,59451.0,59450.0,1.12155852]
[1723741670868,0.001826,59451.0,59450.0,0.54872452]
[1723741671041,0.001826,59451.0,59450.0,0.38051652]
[1723741671278,0.001826,59451.0,59450.0,0.37951652]
[1723741671482,0.001826,59451.0,59450.0,0.44772452]
[1723741671686,0.001826,59451.0,59450.0,0.28051652]
[1723741671897,0.001826,59451.0,59450.0,0.78514152]
[1723741672121,0.002826,59451.0,59450.0,0.45372452]
[1723741672777,0.002826,59451.0,59450.0,0.28551652]
[1723741673406,0.002826,59451.0,59450.0,0.45372452]
[1723741673825,0.002826,59451.0,59450.0,0.79014152]
[1723741674232,0.002826,59451.0,59450.0,0.45372452]
[1723741674429,0.002826,59451.0,59450.0,0.28551652]
[1723741674882,0.002826,59451.0,59450.0,0.45372452]
[1723741675089,0.001826,59451.0,59450.0,0.44872452]
[1723741675438,0.001826,59451.0,59450.0,0.45172452]
[1723741676002,0.170031,59451.0,59450.0,0.28051652]
[1723741676228,0.170031,59451.0,59450.0,0.28351652]
[1723741676402,0.001826,59451.0,59450.0,0.28351652]
[1723741677005,0.000826,59451.0,59450.0,0.27751652]
[1723741677231,0.169031,59451.0,59450.0,0.27751652]
[1723741677535,0.169031,59451.0,59450.0,0.20781652]
[1723741677824,0.934753,59451.0,59450.0,0.003]